[Event "Titled Tuesday Blitz March 21 Early 2023"]
[White "Ioannidis, Evgenios"]
[Black "Federzoni, Enzo"]
[WhiteFideId "4229274"]
[BlackFideId "2173301"]
[WhiteElo "2386"]
[BlackElo "2039"]
[Result "1-0"]
[Round "02"]
[TimeControl "180+2"]
[Date "2023.03.21"]
[WhiteClock "0:01:05"]
[BlackClock "0:00:52"]

1. d4 {[%clk 0:03:00]}  Nf6 {[%clk 0:02:59]} 2. c4 {[%clk 0:03:00]}  e6 {[%clk 0:03:00]} 3. Nc3 {[%clk 0:03:00]}  Bb4 {[%clk 0:03:00]} 4. Qc2 {[%clk 0:02:58]}  O-O {[%clk 0:03:01]} 5. e4 {[%clk 0:02:59]}  c5 {[%clk 0:03:00]} 6. e5 {[%clk 0:02:54]}  cxd4 {[%clk 0:03:00]} 7. a3 {[%clk 0:02:48]}  Qa5 {[%clk 0:02:19]} 8. exf6 {[%clk 0:02:46]}  dxc3 {[%clk 0:02:16]} 9. axb4 {[%clk 0:02:44]}  Qxa1 {[%clk 0:02:02]} 10. fxg7 {[%clk 0:02:41]}  Re8 {[%clk 0:01:55]} 11. bxc3 {[%clk 0:02:36]}  d5 {[%clk 0:01:55]} 12. Bd3 {[%clk 0:02:25]}  dxc4 {[%clk 0:01:44]} 13. Bxh7+ {[%clk 0:02:25]}  Kxg7 {[%clk 0:01:45]} 14. Nf3 {[%clk 0:02:18]}  a5 {[%clk 0:01:27]} 15. O-O {[%clk 0:01:52]}  axb4 {[%clk 0:01:22]} 16. cxb4 {[%clk 0:01:33]}  Ra2 {[%clk 0:01:20]} 17. Qxc4 {[%clk 0:01:33]}  Kxh7 {[%clk 0:01:16]} 18. Be3 {[%clk 0:01:10]}  Qb2 {[%clk 0:00:53]} 19. Qh4+ {[%clk 0:01:08]}  Kg6 {[%clk 0:00:51]} 20. Qg5+ {[%clk 0:01:06]}  Kh7 {[%clk 0:00:52]} 21. Bd4 {[%clk 0:01:05]} 1-0


[Site "https://www.chess.com"]

[Event "Titled Tuesday Blitz March 21 Early 2023"]
[White "Mindlin, Alon"]
[Black "Shevtchenko, Olesya"]
[WhiteFideId "2800071"]
[BlackFideId "24131890"]
[WhiteElo "2430"]
[BlackElo "2003"]
[Result "1-0"]
[Round "02"]
[TimeControl "180+2"]
[Date "2023.03.21"]
[WhiteClock "0:01:40"]
[BlackClock "0:01:29"]

1. e4 {[%clk 0:03:00]}  c6 {[%clk 0:02:59]} 2. c4 {[%clk 0:03:00]}  d5 {[%clk 0:03:00]} 3. cxd5 {[%clk 0:03:00]}  cxd5 {[%clk 0:02:59]} 4. exd5 {[%clk 0:03:00]}  Nf6 {[%clk 0:03:00]} 5. Nc3 {[%clk 0:03:01]}  g6 {[%clk 0:03:00]} 6. Bc4 {[%clk 0:02:58]}  Bg7 {[%clk 0:03:00]} 7. Nge2 {[%clk 0:02:57]}  O-O {[%clk 0:03:01]} 8. d4 {[%clk 0:02:58]}  Nbd7 {[%clk 0:03:01]} 9. Nf4 {[%clk 0:02:58]}  Nb6 {[%clk 0:03:02]} 10. Bb3 {[%clk 0:02:58]}  Bf5 {[%clk 0:02:59]} 11. O-O {[%clk 0:02:58]}  Rc8 {[%clk 0:02:58]} 12. Re1 {[%clk 0:02:58]}  a5 {[%clk 0:02:55]} 13. a3 {[%clk 0:02:57]}  Nc4 {[%clk 0:02:55]} 14. Qe2 {[%clk 0:02:56]}  Nd6 {[%clk 0:02:33]} 15. h3 {[%clk 0:02:50]}  Re8 {[%clk 0:02:31]} 16. Ba4 {[%clk 0:02:48]}  Bd7 {[%clk 0:02:31]} 17. Bd2 {[%clk 0:02:36]}  Bxa4 {[%clk 0:02:28]} 18. Nxa4 {[%clk 0:02:37]}  b5 {[%clk 0:02:25]} 19. Nc5 {[%clk 0:02:35]}  Nc4 {[%clk 0:02:24]} 20. Rad1 {[%clk 0:02:26]}  Nxd5 {[%clk 0:02:23]} 21. Nb7 {[%clk 0:02:11]}  Nxf4 {[%clk 0:02:17]} 22. Bxf4 {[%clk 0:02:10]}  Qd5 {[%clk 0:02:16]} 23. Nc5 {[%clk 0:02:06]}  Bxd4 {[%clk 0:02:07]} 24. Nb3 {[%clk 0:02:05]}  e5 {[%clk 0:02:05]} 25. Nxd4 {[%clk 0:02:02]}  exf4 {[%clk 0:02:02]} 26. Qxe8+ {[%clk 0:02:00]}  Rxe8 {[%clk 0:02:03]} 27. Rxe8+ {[%clk 0:02:01]}  Kg7 {[%clk 0:02:03]} 28. Ne6+ {[%clk 0:02:01]}  Qxe6 {[%clk 0:02:03]} 29. Rxe6 {[%clk 0:02:01]}  fxe6 {[%clk 0:02:04]} 30. Rd7+ {[%clk 0:01:57]}  Kf6 {[%clk 0:02:03]} 31. Rb7 {[%clk 0:01:58]}  Nd6 {[%clk 0:01:58]} 32. Rxh7 {[%clk 0:01:57]}  e5 {[%clk 0:01:57]} 33. b3 {[%clk 0:01:54]}  e4 {[%clk 0:01:53]} 34. Ra7 {[%clk 0:01:53]}  Ke5 {[%clk 0:01:49]} 35. Rxa5 {[%clk 0:01:52]}  Kd4 {[%clk 0:01:50]} 36. Ra8 {[%clk 0:01:51]}  Kc3 {[%clk 0:01:47]} 37. a4 {[%clk 0:01:43]}  Kxb3 {[%clk 0:01:43]} 38. a5 {[%clk 0:01:43]}  e3 {[%clk 0:01:35]} 39. fxe3 {[%clk 0:01:42]}  fxe3 {[%clk 0:01:35]} 40. a6 {[%clk 0:01:40]}  Ne4 {[%clk 0:01:29]} 41. Re8 {[%clk 0:01:40]} 1-0


[Site "https://www.chess.com"]

[Event "Titled Tuesday Blitz March 21 Early 2023"]
[White "Karthik Rajaa"]
[Black "Forgacs, Attila Jr."]
[WhiteFideId "25035215"]
[BlackFideId "773654"]
[WhiteElo "2215"]
[BlackElo "2168"]
[Result "1-0"]
[Round "02"]
[TimeControl "180+2"]
[Date "2023.03.21"]
[WhiteClock "0:00:18"]
[BlackClock "0:00:05"]

1. Nf3 {[%clk 0:02:59]}  Nf6 {[%clk 0:02:58]} 2. c4 {[%clk 0:02:59]}  g6 {[%clk 0:02:59]} 3. Nc3 {[%clk 0:02:59]}  d5 {[%clk 0:02:56]} 4. cxd5 {[%clk 0:02:59]}  Nxd5 {[%clk 0:02:56]} 5. h4 {[%clk 0:02:59]}  Bg7 {[%clk 0:02:50]} 6. h5 {[%clk 0:02:59]}  e5 {[%clk 0:02:33]} 7. h6 {[%clk 0:02:37]}  Bf6 {[%clk 0:02:33]} 8. Ne4 {[%clk 0:02:33]}  Nc6 {[%clk 0:02:33]} 9. Nxf6+ {[%clk 0:02:29]}  Qxf6 {[%clk 0:02:31]} 10. d3 {[%clk 0:02:28]}  Qd6 {[%clk 0:02:15]} 11. a3 {[%clk 0:02:05]}  O-O {[%clk 0:02:09]} 12. e3 {[%clk 0:02:03]}  f5 {[%clk 0:02:07]} 13. Be2 {[%clk 0:02:02]}  f4 {[%clk 0:01:58]} 14. e4 {[%clk 0:01:58]}  Nf6 {[%clk 0:01:53]} 15. b4 {[%clk 0:01:39]}  Nd4 {[%clk 0:01:39]} 16. Nxd4 {[%clk 0:01:31]}  Qxd4 {[%clk 0:01:39]} 17. Rb1 {[%clk 0:01:20]}  Qc3+ {[%clk 0:01:24]} 18. Kf1 {[%clk 0:01:08]}  Qc6 {[%clk 0:00:48]} 19. Bb2 {[%clk 0:01:03]}  Qd6 {[%clk 0:00:42]} 20. Qb3+ {[%clk 0:00:53]}  Be6 {[%clk 0:00:35]} 21. Qc3 {[%clk 0:00:54]}  Ng4 {[%clk 0:00:30]} 22. Rh4 {[%clk 0:00:47]}  Qd7 {[%clk 0:00:14]} 23. d4 {[%clk 0:00:35]}  exd4 {[%clk 0:00:12]} 24. Qxd4 {[%clk 0:00:36]}  Qxd4 {[%clk 0:00:12]} 25. Bxd4 {[%clk 0:00:37]}  Nf6 {[%clk 0:00:08]} 26. Rxf4 {[%clk 0:00:36]}  Nd7 {[%clk 0:00:06]} 27. Rxf8+ {[%clk 0:00:34]}  Rxf8 {[%clk 0:00:07]} 28. Rd1 {[%clk 0:00:24]}  Nf6 {[%clk 0:00:07]} 29. Bxf6 {[%clk 0:00:14]}  Rxf6 {[%clk 0:00:08]} 30. Rd8+ {[%clk 0:00:14]}  Kf7 {[%clk 0:00:08]} 31. g3 {[%clk 0:00:12]}  g5 {[%clk 0:00:08]} 32. Bh5+ {[%clk 0:00:10]}  Ke7 {[%clk 0:00:08]} 33. Re8+ {[%clk 0:00:06]}  Kd7 {[%clk 0:00:07]} 34. Rg8 {[%clk 0:00:06]}  Rxh6 {[%clk 0:00:07]} 35. Bf3 {[%clk 0:00:07]}  g4 {[%clk 0:00:07]} 36. Rg7+ {[%clk 0:00:07]}  Kd6 {[%clk 0:00:07]} 37. Bxg4 {[%clk 0:00:07]}  Rh1+ {[%clk 0:00:06]} 38. Ke2 {[%clk 0:00:07]}  Bxg4+ {[%clk 0:00:06]} 39. Rxg4 {[%clk 0:00:08]}  Ra1 {[%clk 0:00:06]} 40. Rh4 {[%clk 0:00:09]}  Ra2+ {[%clk 0:00:06]} 41. Kf1 {[%clk 0:00:09]}  Rxa3 {[%clk 0:00:07]} 42. Rxh7 {[%clk 0:00:10]}  Rb3 {[%clk 0:00:07]} 43. Rh6+ {[%clk 0:00:10]}  Ke5 {[%clk 0:00:07]} 44. Rh7 {[%clk 0:00:10]}  Rxb4 {[%clk 0:00:07]} 45. Rxc7 {[%clk 0:00:10]}  a5 {[%clk 0:00:08]} 46. Rc5+ {[%clk 0:00:10]}  Kxe4 {[%clk 0:00:07]} 47. Rxa5 {[%clk 0:00:10]}  Kf3 {[%clk 0:00:07]} 48. Ra3+ {[%clk 0:00:11]}  Kg4 {[%clk 0:00:08]} 49. Kg2 {[%clk 0:00:12]}  Rb2 {[%clk 0:00:08]} 50. Ra5 {[%clk 0:00:12]}  b5 {[%clk 0:00:07]} 51. Ra6 {[%clk 0:00:11]}  b4 {[%clk 0:00:07]} 52. Rf6 {[%clk 0:00:11]}  Kg5 {[%clk 0:00:07]} 53. Rf4 {[%clk 0:00:12]}  b3 {[%clk 0:00:08]} 54. Rb4 {[%clk 0:00:12]}  Kf5 {[%clk 0:00:07]} 55. Kf3 {[%clk 0:00:12]}  Kg5 {[%clk 0:00:07]} 56. Rb5+ {[%clk 0:00:13]}  Kf6 {[%clk 0:00:07]} 57. g4 {[%clk 0:00:13]}  Kg6 {[%clk 0:00:07]} 58. Kg3 {[%clk 0:00:14]}  Kf7 {[%clk 0:00:07]} 59. f3 {[%clk 0:00:14]}  Kg7 {[%clk 0:00:07]} 60. Kf4 {[%clk 0:00:14]}  Kf6 {[%clk 0:00:07]} 61. Rb6+ {[%clk 0:00:14]}  Kf7 {[%clk 0:00:08]} 62. g5 {[%clk 0:00:15]}  Kg7 {[%clk 0:00:08]} 63. Kf5 {[%clk 0:00:15]}  Rf2 {[%clk 0:00:07]} 64. f4 {[%clk 0:00:15]}  b2 {[%clk 0:00:07]} 65. Rb7+ {[%clk 0:00:15]}  Kf8 {[%clk 0:00:07]} 66. g6 {[%clk 0:00:15]}  Rg2 {[%clk 0:00:07]} 67. Kf6 {[%clk 0:00:15]}  Ke8 {[%clk 0:00:07]} 68. f5 {[%clk 0:00:16]}  Kd8 {[%clk 0:00:06]} 69. g7 {[%clk 0:00:16]}  Kc8 {[%clk 0:00:06]} 70. Rxb2 {[%clk 0:00:17]}  Rxb2 {[%clk 0:00:04]} 71. g8=Q+ {[%clk 0:00:18]}  Kc7 {[%clk 0:00:05]} 72. Qc4+ {[%clk 0:00:18]}  Kd7 {[%clk 0:00:05]} 73. Qd4+ {[%clk 0:00:18]}  Kc6 {[%clk 0:00:05]} 74. Qxb2 {[%clk 0:00:18]} 1-0


[Site "https://www.chess.com"]

[Event "Titled Tuesday Blitz March 21 Early 2023"]
[White "Jovic, Stanoje"]
[Black "Domingo Nunez, Ruben"]
[WhiteFideId "905020"]
[BlackFideId "22245570"]
[WhiteElo "2236"]
[BlackElo "2404"]
[Result "0-1"]
[Round "02"]
[TimeControl "180+2"]
[Date "2023.03.21"]
[WhiteClock "0:00:04"]
[BlackClock "0:00:10"]

1. c4 {[%clk 0:03:00]}  g6 {[%clk 0:02:58]} 2. g3 {[%clk 0:03:01]}  Bg7 {[%clk 0:02:59]} 3. Bg2 {[%clk 0:03:01]}  d6 {[%clk 0:02:59]} 4. Nc3 {[%clk 0:03:00]}  Nf6 {[%clk 0:02:59]} 5. Nf3 {[%clk 0:03:00]}  O-O {[%clk 0:03:00]} 6. O-O {[%clk 0:03:00]}  Nbd7 {[%clk 0:03:01]} 7. d3 {[%clk 0:03:00]}  c5 {[%clk 0:03:02]} 8. a3 {[%clk 0:02:56]}  Rb8 {[%clk 0:03:02]} 9. b4 {[%clk 0:02:55]}  Ne8 {[%clk 0:03:03]} 10. Bd2 {[%clk 0:02:52]}  b6 {[%clk 0:03:03]} 11. b5 {[%clk 0:02:51]}  Bb7 {[%clk 0:03:03]} 12. a4 {[%clk 0:02:48]}  Nc7 {[%clk 0:03:03]} 13. a5 {[%clk 0:02:48]}  d5 {[%clk 0:03:04]} 14. axb6 {[%clk 0:02:41]}  axb6 {[%clk 0:03:04]} 15. Qb3 {[%clk 0:02:38]}  dxc4 {[%clk 0:02:59]} 16. dxc4 {[%clk 0:02:38]}  Ne5 {[%clk 0:02:59]} 17. Rfd1 {[%clk 0:02:29]}  Nxf3+ {[%clk 0:02:55]} 18. Bxf3 {[%clk 0:02:29]}  Bxf3 {[%clk 0:02:56]} 19. exf3 {[%clk 0:02:29]}  Qc8 {[%clk 0:02:56]} 20. Bf4 {[%clk 0:02:25]}  Bd4 {[%clk 0:02:56]} 21. Ra7 {[%clk 0:02:18]}  Rb7 {[%clk 0:02:55]} 22. Rxb7 {[%clk 0:02:16]}  Qxb7 {[%clk 0:02:55]} 23. Bxc7 {[%clk 0:02:16]}  Qxc7 {[%clk 0:02:56]} 24. Nd5 {[%clk 0:02:16]}  Qd6 {[%clk 0:02:57]} 25. Kg2 {[%clk 0:02:08]}  h5 {[%clk 0:02:53]} 26. h4 {[%clk 0:02:07]}  Ra8 {[%clk 0:02:51]} 27. Qc2 {[%clk 0:02:00]}  e6 {[%clk 0:02:51]} 28. Nf6+ {[%clk 0:01:57]}  Kg7 {[%clk 0:02:50]} 29. Ne4 {[%clk 0:01:56]}  Qe5 {[%clk 0:02:48]} 30. f4 {[%clk 0:01:43]}  Qc7 {[%clk 0:02:40]} 31. Ng5 {[%clk 0:01:35]}  Ra3 {[%clk 0:02:34]} 32. Qe4 {[%clk 0:01:26]}  Qe7 {[%clk 0:02:16]} 33. Rxd4 {[%clk 0:01:22]}  cxd4 {[%clk 0:02:13]} 34. Qxd4+ {[%clk 0:01:23]}  f6 {[%clk 0:02:06]} 35. Ne4 {[%clk 0:01:15]}  Ra4 {[%clk 0:02:06]} 36. Nd6 {[%clk 0:00:59]}  e5 {[%clk 0:01:43]} 37. Qxb6 {[%clk 0:00:55]}  exf4 {[%clk 0:01:41]} 38. gxf4 {[%clk 0:00:55]}  Qd7 {[%clk 0:01:37]} 39. Ne4 {[%clk 0:00:42]}  Qg4+ {[%clk 0:01:28]} 40. Ng3 {[%clk 0:00:41]}  Rxc4 {[%clk 0:01:05]} 41. Qb7+ {[%clk 0:00:40]}  Kh6 {[%clk 0:01:03]} 42. Qf7 {[%clk 0:00:37]}  Qc8 {[%clk 0:00:30]} 43. Qxf6 {[%clk 0:00:34]}  Qb7+ {[%clk 0:00:31]} 44. Kh2 {[%clk 0:00:32]}  Rc2 {[%clk 0:00:28]} 45. Qh8+ {[%clk 0:00:24]}  Qh7 {[%clk 0:00:28]} 46. Qd4 {[%clk 0:00:23]}  Qe7 {[%clk 0:00:26]} 47. Qh8+ {[%clk 0:00:18]}  Qh7 {[%clk 0:00:26]} 48. Qd4 {[%clk 0:00:15]}  Qg7 {[%clk 0:00:26]} 49. Qe3 {[%clk 0:00:12]}  Qc3 {[%clk 0:00:20]} 50. Qa7 {[%clk 0:00:04]}  Qf3 {[%clk 0:00:10]} 0-1


[Site "https://www.chess.com"]

[Event "Titled Tuesday Blitz March 21 Early 2023"]
[White "Mhango, Banele"]
[Black "ArtemDyachuk"]
[WhiteFideId "14327040"]
[WhiteElo "2204"]
[BlackElo "2379"]
[Result "1-0"]
[Round "02"]
[TimeControl "180+2"]
[Date "2023.03.21"]
[WhiteClock "0:01:23"]
[BlackClock "0:00:01"]

1. d4 {[%clk 0:02:57]}  Nf6 {[%clk 0:02:50]} 2. Nf3 {[%clk 0:02:57]}  e6 {[%clk 0:02:47]} 3. g3 {[%clk 0:02:58]}  c5 {[%clk 0:02:46]} 4. Bg2 {[%clk 0:02:57]}  cxd4 {[%clk 0:02:45]} 5. O-O {[%clk 0:02:56]}  Nc6 {[%clk 0:02:46]} 6. Nxd4 {[%clk 0:02:55]}  Bc5 {[%clk 0:02:44]} 7. Nb3 {[%clk 0:02:55]}  Bb6 {[%clk 0:02:40]} 8. c4 {[%clk 0:02:56]}  O-O {[%clk 0:02:36]} 9. c5 {[%clk 0:02:56]}  Bc7 {[%clk 0:02:36]} 10. Nc3 {[%clk 0:02:55]}  b6 {[%clk 0:02:32]} 11. Nb5 {[%clk 0:02:53]}  Bb8 {[%clk 0:02:31]} 12. Be3 {[%clk 0:02:49]}  Ng4 {[%clk 0:02:26]} 13. Bc1 {[%clk 0:02:43]}  bxc5 {[%clk 0:02:23]} 14. Nxc5 {[%clk 0:02:43]}  d5 {[%clk 0:01:36]} 15. e4 {[%clk 0:02:41]}  Nf6 {[%clk 0:01:12]} 16. exd5 {[%clk 0:02:37]}  exd5 {[%clk 0:01:13]} 17. Nc3 {[%clk 0:02:33]}  Be6 {[%clk 0:00:50]} 18. Re1 {[%clk 0:02:27]}  Ne5 {[%clk 0:00:30]} 19. Bg5 {[%clk 0:02:19]}  Bg4 {[%clk 0:00:10]} 20. Qa4 {[%clk 0:02:08]}  Nf3+ {[%clk 0:00:04]} 21. Bxf3 {[%clk 0:01:42]}  Bxf3 {[%clk 0:00:05]} 22. Qc6 {[%clk 0:01:42]}  Bc7 {[%clk 0:00:02]} 23. Bxf6 {[%clk 0:01:40]}  gxf6 {[%clk 0:00:01]} 24. Re3 {[%clk 0:01:37]}  Bh5 {[%clk 0:00:01]} 25. Nxd5 {[%clk 0:01:36]}  Be5 {[%clk 0:00:01]} 26. Rxe5 {[%clk 0:01:35]}  fxe5 {[%clk 0:00:01]} 27. Nf6+ {[%clk 0:01:36]}  Kh8 {[%clk 0:00:01]} 28. Nxh5 {[%clk 0:01:36]}  Rc8 {[%clk 0:00:01]} 29. Qb5 {[%clk 0:01:35]}  Qd5 {[%clk 0:00:01]} 30. b4 {[%clk 0:01:35]}  e4 {[%clk 0:00:01]} 31. Nf4 {[%clk 0:01:33]}  Qd4 {[%clk 0:00:01]} 32. Re1 {[%clk 0:01:31]}  Rfe8 {[%clk 0:00:02]} 33. Re3 {[%clk 0:01:30]}  Rb8 {[%clk 0:00:02]} 34. Qc6 {[%clk 0:01:27]}  Qxb4 {[%clk 0:00:01]} 35. Qf6+ {[%clk 0:01:27]}  Kg8 {[%clk 0:00:01]} 36. Nh5 {[%clk 0:01:23]}  Qb1+ {[%clk 0:00:01]} 37. Kg2 {[%clk 0:01:23]}  Qb2 {[%clk 0:00:01]} 38. Qg5+ {[%clk 0:01:22]}  Kh8 {[%clk 0:00:01]} 39. Nxe4 {[%clk 0:01:23]} 1-0


[Site "https://www.chess.com"]

[Event "Titled Tuesday Blitz March 21 Early 2023"]
[White "Demin, Vladimir"]
[Black "Mogirzan, Matei-Valeriu"]
[WhiteFideId "4167457"]
[BlackFideId "1257455"]
[WhiteElo "2621"]
[BlackElo "1733"]
[Result "1-0"]
[Round "02"]
[TimeControl "180+2"]
[Date "2023.03.21"]
[WhiteClock "0:00:06"]
[BlackClock "0:00:19"]

1. e4 {[%clk 0:02:53]}  e5 {[%clk 0:02:58]} 2. Nf3 {[%clk 0:02:52]}  Nf6 {[%clk 0:02:59]} 3. Nc3 {[%clk 0:02:51]}  Bc5 {[%clk 0:02:58]} 4. h3 {[%clk 0:02:41]}  Nc6 {[%clk 0:02:50]} 5. Nxe5 {[%clk 0:02:28]}  h5 {[%clk 0:02:45]} 6. Nxc6 {[%clk 0:02:03]}  dxc6 {[%clk 0:02:45]} 7. d3 {[%clk 0:02:02]}  b5 {[%clk 0:02:43]} 8. Be3 {[%clk 0:01:56]}  Bd4 {[%clk 0:02:23]} 9. Qc1 {[%clk 0:01:38]}  Be6 {[%clk 0:02:06]} 10. Bxd4 {[%clk 0:01:30]}  Qxd4 {[%clk 0:02:07]} 11. Qe3 {[%clk 0:01:30]}  Qb4 {[%clk 0:02:05]} 12. O-O-O {[%clk 0:01:24]}  a5 {[%clk 0:02:05]} 13. d4 {[%clk 0:01:19]}  O-O {[%clk 0:01:42]} 14. e5 {[%clk 0:00:36]}  Nd7 {[%clk 0:01:05]} 15. Qg5 {[%clk 0:00:24]}  a4 {[%clk 0:00:55]} 16. a3 {[%clk 0:00:16]}  Qa5 {[%clk 0:00:48]} 17. d5 {[%clk 0:00:15]}  b4 {[%clk 0:00:34]} 18. Ne4 {[%clk 0:00:09]}  f5 {[%clk 0:00:17]} 19. exf6 {[%clk 0:00:09]}  Nxf6 {[%clk 0:00:15]} 20. dxe6 {[%clk 0:00:05]}  Nxe4 {[%clk 0:00:14]} 21. Qxa5 {[%clk 0:00:06]}  Rxa5 {[%clk 0:00:14]} 22. axb4 {[%clk 0:00:06]}  Re5 {[%clk 0:00:12]} 23. Bc4 {[%clk 0:00:06]}  Nxf2 {[%clk 0:00:12]} 24. e7+ {[%clk 0:00:06]}  Rf7 {[%clk 0:00:12]} 25. Rd8+ {[%clk 0:00:05]}  Kh7 {[%clk 0:00:11]} 26. e8=Q {[%clk 0:00:04]}  Rxe8 {[%clk 0:00:11]} 27. Rxe8 {[%clk 0:00:05]}  Rf6 {[%clk 0:00:10]} 28. Rhe1 {[%clk 0:00:05]}  h4 {[%clk 0:00:10]} 29. R8e2 {[%clk 0:00:04]}  Kh6 {[%clk 0:00:10]} 30. Rd2 {[%clk 0:00:04]}  Kg5 {[%clk 0:00:09]} 31. Rf1 {[%clk 0:00:04]}  Re6 {[%clk 0:00:10]} 32. Rdxf2 {[%clk 0:00:03]}  Re1+ {[%clk 0:00:10]} 33. Rxe1 {[%clk 0:00:03]}  Kh5 {[%clk 0:00:11]} 34. Rfe2 {[%clk 0:00:04]}  g5 {[%clk 0:00:12]} 35. Re5 {[%clk 0:00:04]}  a3 {[%clk 0:00:13]} 36. R5e4 {[%clk 0:00:05]}  axb2+ {[%clk 0:00:13]} 37. Kxb2 {[%clk 0:00:05]}  c5 {[%clk 0:00:14]} 38. Re8 {[%clk 0:00:06]}  cxb4 {[%clk 0:00:15]} 39. Rh8+ {[%clk 0:00:06]}  Kg6 {[%clk 0:00:16]} 40. Rg8+ {[%clk 0:00:07]}  Kf5 {[%clk 0:00:17]} 41. Rf1+ {[%clk 0:00:07]}  Ke4 {[%clk 0:00:17]} 42. Bd3+ {[%clk 0:00:07]}  Kd4 {[%clk 0:00:18]} 43. Rd8+ {[%clk 0:00:07]}  Ke3 {[%clk 0:00:18]} 44. Re8+ {[%clk 0:00:07]}  Kd2 {[%clk 0:00:19]} 45. Re2# {[%clk 0:00:06]} 1-0


[Site "https://www.chess.com"]

[Event "Titled Tuesday Blitz March 21 Early 2023"]
[White "Vlassov, Nikolai"]
[Black "Bochnicka, Vladimir"]
[WhiteFideId "4103360"]
[BlackFideId "14943450"]
[WhiteElo "2324"]
[BlackElo "2094"]
[Result "1-0"]
[Round "02"]
[TimeControl "180+2"]
[Date "2023.03.21"]
[WhiteClock "0:02:10"]
[BlackClock "0:01:31"]

1. e4 {[%clk 0:03:00]}  c5 {[%clk 0:02:59]} 2. c3 {[%clk 0:03:00]}  Nf6 {[%clk 0:02:58]} 3. e5 {[%clk 0:03:00]}  Nd5 {[%clk 0:02:59]} 4. d4 {[%clk 0:03:00]}  cxd4 {[%clk 0:02:59]} 5. cxd4 {[%clk 0:03:00]}  Nc6 {[%clk 0:03:00]} 6. Nc3 {[%clk 0:03:00]}  Nxc3 {[%clk 0:02:55]} 7. bxc3 {[%clk 0:03:00]}  d6 {[%clk 0:02:56]} 8. f4 {[%clk 0:03:00]}  Bf5 {[%clk 0:02:52]} 9. Nf3 {[%clk 0:02:59]}  dxe5 {[%clk 0:02:51]} 10. fxe5 {[%clk 0:02:58]}  e6 {[%clk 0:02:51]} 11. Bd3 {[%clk 0:02:57]}  Bxd3 {[%clk 0:02:50]} 12. Qxd3 {[%clk 0:02:57]}  Be7 {[%clk 0:02:51]} 13. O-O {[%clk 0:02:56]}  O-O {[%clk 0:02:51]} 14. Bd2 {[%clk 0:02:49]}  Rc8 {[%clk 0:02:51]} 15. Rf2 {[%clk 0:02:46]}  a6 {[%clk 0:02:50]} 16. Raf1 {[%clk 0:02:46]}  b5 {[%clk 0:02:49]} 17. Qe4 {[%clk 0:02:42]}  Na5 {[%clk 0:02:43]} 18. h4 {[%clk 0:02:41]}  h6 {[%clk 0:02:40]} 19. Qg4 {[%clk 0:02:33]}  Kh8 {[%clk 0:02:37]} 20. Qh5 {[%clk 0:02:32]}  Kh7 {[%clk 0:02:08]} 21. Ng5+ {[%clk 0:02:26]}  Bxg5 {[%clk 0:02:06]} 22. hxg5 {[%clk 0:02:24]}  Nc4 {[%clk 0:02:06]} 23. Rxf7 {[%clk 0:02:18]}  Rxf7 {[%clk 0:01:53]} 24. Rxf7 {[%clk 0:02:12]}  Nxd2 {[%clk 0:01:31]} 25. Qxh6+ {[%clk 0:02:10]} 1-0


[Site "https://www.chess.com"]

[Event "Titled Tuesday Blitz March 21 Early 2023"]
[White "Alex_Sahakyan2006"]
[Black "Mirzanurov, Bulat"]
[BlackFideId "4184521"]
[WhiteElo "2610"]
[BlackElo "2019"]
[Result "1-0"]
[Round "02"]
[TimeControl "180+2"]
[Date "2023.03.21"]
[WhiteClock "0:00:51"]
[BlackClock "0:00:57"]

1. e4 {[%clk 0:02:59]}  c5 {[%clk 0:03:00]} 2. Nf3 {[%clk 0:02:59]}  d6 {[%clk 0:03:01]} 3. Nc3 {[%clk 0:02:55]}  Nf6 {[%clk 0:03:00]} 4. e5 {[%clk 0:02:54]}  dxe5 {[%clk 0:02:59]} 5. Nxe5 {[%clk 0:02:55]}  e6 {[%clk 0:02:59]} 6. a4 {[%clk 0:02:47]}  a6 {[%clk 0:02:56]} 7. g3 {[%clk 0:02:39]}  Be7 {[%clk 0:02:52]} 8. Bg2 {[%clk 0:02:39]}  O-O {[%clk 0:02:51]} 9. O-O {[%clk 0:02:39]}  Nbd7 {[%clk 0:02:50]} 10. Nc4 {[%clk 0:02:39]}  Nb6 {[%clk 0:02:45]} 11. d3 {[%clk 0:02:25]}  Nbd5 {[%clk 0:02:42]} 12. Ne4 {[%clk 0:02:12]}  b6 {[%clk 0:02:31]} 13. Nxf6+ {[%clk 0:02:00]}  Bxf6 {[%clk 0:02:28]} 14. c3 {[%clk 0:02:01]}  Bb7 {[%clk 0:02:27]} 15. Qb3 {[%clk 0:01:59]}  Rb8 {[%clk 0:02:23]} 16. Rd1 {[%clk 0:01:55]}  Ba8 {[%clk 0:02:19]} 17. Ne3 {[%clk 0:01:45]}  Nxe3 {[%clk 0:02:16]} 18. Bxe3 {[%clk 0:01:46]}  Bxg2 {[%clk 0:02:15]} 19. Kxg2 {[%clk 0:01:47]}  Qd7 {[%clk 0:02:14]} 20. Qc4 {[%clk 0:01:44]}  Qb7+ {[%clk 0:02:09]} 21. Qe4 {[%clk 0:01:43]}  Be7 {[%clk 0:01:58]} 22. Bf4 {[%clk 0:01:35]}  Qxe4+ {[%clk 0:01:56]} 23. dxe4 {[%clk 0:01:36]}  Rb7 {[%clk 0:01:55]} 24. Bd6 {[%clk 0:01:29]}  g5 {[%clk 0:01:41]} 25. Bxe7 {[%clk 0:01:27]}  Rxe7 {[%clk 0:01:42]} 26. Rd6 {[%clk 0:01:27]}  Rb8 {[%clk 0:01:40]} 27. Rad1 {[%clk 0:01:21]}  Rbb7 {[%clk 0:01:36]} 28. Rc6 {[%clk 0:01:16]}  b5 {[%clk 0:01:30]} 29. a5 {[%clk 0:01:16]}  b4 {[%clk 0:01:20]} 30. c4 {[%clk 0:01:16]}  Rec7 {[%clk 0:01:17]} 31. Rxa6 {[%clk 0:01:14]}  b3 {[%clk 0:01:16]} 32. Rb6 {[%clk 0:01:11]}  Ra7 {[%clk 0:01:13]} 33. Ra1 {[%clk 0:01:06]}  Rd7 {[%clk 0:01:05]} 34. a6 {[%clk 0:01:03]}  g4 {[%clk 0:00:56]} 35. Rxb3 {[%clk 0:01:00]}  Rd6 {[%clk 0:00:56]} 36. Rb5 {[%clk 0:00:53]}  Rdxa6 {[%clk 0:00:54]} 37. Rxa6 {[%clk 0:00:54]}  Rxa6 {[%clk 0:00:55]} 38. Rxc5 {[%clk 0:00:54]}  Rb6 {[%clk 0:00:55]} 39. Rb5 {[%clk 0:00:52]}  Rc6 {[%clk 0:00:56]} 40. b3 {[%clk 0:00:51]}  Rb6 {[%clk 0:00:57]} 41. Rxb6 {[%clk 0:00:51]} 1-0


[Site "https://www.chess.com"]

[Event "Titled Tuesday Blitz March 21 Early 2023"]
[White "Kim, Sergey"]
[Black "Melikhov, Evgeny V."]
[WhiteFideId "13700570"]
[BlackFideId "4122046"]
[WhiteElo "2593"]
[BlackElo "2158"]
[Result "1-0"]
[Round "02"]
[TimeControl "180+2"]
[Date "2023.03.21"]
[WhiteClock "0:01:40"]
[BlackClock "0:00:54"]

1. d4 {[%clk 0:03:00]}  Nf6 {[%clk 0:02:59]} 2. c4 {[%clk 0:03:01]}  e6 {[%clk 0:03:00]} 3. Nc3 {[%clk 0:03:01]}  Bb4 {[%clk 0:02:59]} 4. Qc2 {[%clk 0:03:01]}  c5 {[%clk 0:02:56]} 5. dxc5 {[%clk 0:03:00]}  Na6 {[%clk 0:02:56]} 6. Nf3 {[%clk 0:03:00]}  Nxc5 {[%clk 0:02:52]} 7. Bd2 {[%clk 0:03:00]}  O-O {[%clk 0:02:44]} 8. e3 {[%clk 0:03:01]}  d5 {[%clk 0:02:20]} 9. Be2 {[%clk 0:03:01]}  dxc4 {[%clk 0:02:10]} 10. Bxc4 {[%clk 0:03:00]}  a6 {[%clk 0:02:02]} 11. O-O {[%clk 0:02:59]}  b5 {[%clk 0:02:02]} 12. Be2 {[%clk 0:02:58]}  Bb7 {[%clk 0:01:59]} 13. Rfd1 {[%clk 0:02:57]}  Qc7 {[%clk 0:01:57]} 14. Nxb5 {[%clk 0:02:51]}  axb5 {[%clk 0:01:31]} 15. Bxb4 {[%clk 0:02:51]}  Na6 {[%clk 0:01:28]} 16. Qxc7 {[%clk 0:02:49]}  Nxc7 {[%clk 0:01:27]} 17. Bxf8 {[%clk 0:02:49]}  Kxf8 {[%clk 0:01:28]} 18. Ne5 {[%clk 0:02:39]}  Ncd5 {[%clk 0:01:21]} 19. Bxb5 {[%clk 0:02:35]}  Nb4 {[%clk 0:01:10]} 20. a4 {[%clk 0:02:30]}  Bd5 {[%clk 0:01:06]} 21. f3 {[%clk 0:02:27]}  Bb3 {[%clk 0:01:01]} 22. Rd2 {[%clk 0:01:55]}  Nc2 {[%clk 0:00:56]} 23. Rc1 {[%clk 0:01:53]}  Nxe3 {[%clk 0:00:56]} 24. Nd7+ {[%clk 0:01:52]}  Ke7 {[%clk 0:00:55]} 25. Nxf6 {[%clk 0:01:49]}  Kxf6 {[%clk 0:00:54]} 26. Rc3 {[%clk 0:01:40]} 1-0


[Site "https://www.chess.com"]